Cogmind - Beta 10.2 @@@ ROGUE MODE // 2020.12.13 @ 00:01:54 Player: kerapace Result: Destroyed by 8R-AWN with 8R-AWN's Boregun Performance ------------- Evolutions (1) 500 Regions Visited (5) 1000 Robots Destroyed (42) 210 Value Destroyed (1071) 1071 Prototype IDs (24) 480 Alien Tech Used (0) 0 Bonus (318) 318 TOTAL SCORE: 3579 Bonus ------- High Alert Combat Kills 57 Aligned with FarCom 300 Friendly Fire -39 Cogmind --------- Core Integrity 0/400 Matter 6/300 Energy 85/100 System Corruption 0% Temperature Cool (0) Movement Core (100) Ox1 Location -9/Exiles Parts ------- > --- POWER (1) -------- (None) > --- PROPULSION (3) --- (None) > --- UTILITY (3) ------ (None) > --- WEAPON (2) ------- Assault Rifle Katana > --- INVENTORY (4) ---- Heavy Assault Rifle Grenade Launcher Peak State ------------ > --- POWER ------------ Heavy Ion Engine > --- PROPULSION ------- Light Treads Light Treads Light Treads > --- UTILITY ---------- High-capacity Storage Unit Medium Armor Plating Shield Generator > --- WEAPON ----------- Heavy Assault Rifle Grenade Launcher > --- INVENTORY -------- Light Treads Superbattery Improved Weapon Shielding Reflective Plating Assault Rifle Assault Rifle Heavy Assault Rifle Heavy Assault Rifle Heavy Assault Rifle Improved Light Cannon Katana [Rating: 17] Favorites ----------- Power Ion Engine Engine Ion Engine Propulsion Light Treads Treads Light Treads Wheel Wheel Utility High-capacity Storage Unit Device Shield Generator Storage High-capacity Storage Unit Protection Reflective Plating Weapon Assault Rifle Energy Gun Medium Laser Ballistic Gun Assault Rifle Ballistic Cannon Improved Light Cannon Launcher Grenade Launcher Slashing Weapon Katana Build | -11 -10 -10 -9 -9 -9 ------- Run | Scr Mat Min Mat Min Exi Slots Evolved 2 | . . . 2 . . Power . | . . . . . . Propulsion 1 | . . . 1 . . Utility 1 | . . . 1 . . Weapon . | . . . . . . Parts Attached 42 | 6 1 4 15 . 16 Power 4 | 1 . . 3 . . Engine 4 | 1 . . 3 . . Core . | . . . . . . Reactor . | . . . . . . Propulsion 10 | 2 . 1 5 . 2 Treads 8 | 1 . . 5 . 2 Leg . | . . . . . . Wheel 2 | 1 . 1 . . . Hover . | . . . . . . Flight . | . . . . . . Utility 8 | 1 1 . 3 . 3 Device 2 | . . . 2 . . Storage 3 | 1 1 . 1 . . Processor . | . . . . . . Hackware . | . . . . . . Protection 3 | . . . . . 3 Artifact . | . . . . . . Weapon 20 | 2 . 3 4 . 11 Energy Gun 3 | . . 2 1 . . Energy Cannon . | . . . . . . Ballistic Gun 11 | 2 . . 2 . 7 Ballistic Cannon 1 | . . . . . 1 Launcher 4 | . . 1 1 . 2 Special Weapon . | . . . . . . Impact Weapon . | . . . . . . Slashing Weapon 1 | . . . . . 1 Piercing Weapon . | . . . . . . Special Melee Weapon . | . . . . . . Unidentified Prototypes 1 | . . . 1 . . Parts Lost 15 | . . . 2 . 13 Power 1 | . . . . . 1 Propulsion 4 | . . . . . 4 Utility 3 | . . . . . 3 Weapon 7 | . . . 2 . 5 Highest Loss Streak 8 | . . . 2 . 8 Average Slot Usage (%) 97 | . 96 100 98 100 91 Engine 11 | . 14 14 11 11 9 Treads 18 | . 14 14 21 22 21 Wheel 11 | . 14 14 11 11 7 Device 6 | . . . 10 11 9 Storage 22 | . 24 28 22 22 18 Protection 1 | . . . . . 4 Energy Gun 6 | . . 10 7 . . Ballistic Gun 15 | . 28 10 13 22 19 Launcher 2 | . . 7 . . 1 Naked Turns 3 | . . . . . 3 Heaviest Build 55 | 13 45 46 55 55 55 Greatest Support 60 | 20 16 20 40 10 60 Greatest Overweight (x) 13 | 1 2 4 5 5 13 Average Overweight (x) 2 | . 1 2 2 5 4 Largest Inventory Capacity 16 | 6 14 14 16 16 16 Average Capacity 14 | 5 11 14 14 16 14 Most Carried 16 | 6 7 11 16 16 16 Average Carried 11 | 3 6 9 14 16 13 Final Capacity 16 | 6 14 14 16 16 4 Final Carried 16 | 4 7 11 16 16 2 Class Distribution -------------------- 50% | Mutant 49% | Scavenger-Mutant Dominant Class ---------------- Mutant | -10/Materials Mutant | -10/Mines Scavenger-Mutant | -9/Materials Scavenger-Mutant | -9/Mines Scavenger-Mutant | -9/Exiles Resources | -11 -10 -10 -9 -9 -9 ----------- Run | Scr Mat Min Mat Min Exi Matter Collected 1016 | 232 42 184 500 . 58 Remotely . | . . . . . . Salvage Created 1403 | . 82 230 1056 . 35 Parts 99 | . 4 25 70 . . Haulers Intercepted 3 | . . . 3 . . Recyclers Shooed . | . . . . . . Parts Field Recycled . | . . . . . . Retrieved Matter . | . . . . . . Parts Self-Destructed . | . . . . . . Prevented . | . . . . . . Kills | -11 -10 -10 -9 -9 -9 ------- Run | Scr Mat Min Mat Min Exi Combat Hostiles Destroyed 33 | . 2 5 21 . 5 Guns 21 | . 2 2 15 . 2 AOE 12 | . . 3 6 . 3 Classes Destroyed 11 | . 1 3 6 . 1 Worker 1 | . . . 1 . . Builder 4 | . . 3 1 . . Tunneler 2 | . . 2 . . . Hauler 3 | . . . 3 . . Operator 1 | . . . 1 . . Watcher 3 | . . . 3 . . Swarmer 6 | . . 3 3 . . Grunt 12 | . 2 2 8 . . Duelist 1 | . . . 1 . . Sentry 9 | . . . 9 . . Assembled 5 | . . . . . 5 Best Kill Streak 9 | . 1 3 9 . 3 Combat Bots Only 8 | . 1 3 8 . 3 Max Kills in Single Turn 4 | . 1 3 4 . 2 Gunslinging . | . . . . . . Exploded 3 | . . 3 3 . 2 Melee . | . . . . . . Uniques/NPCs Destroyed . | . . . . . . Combat | -11 -10 -10 -9 -9 -9 -------- Run | Scr Mat Min Mat Min Exi Damage Taken 2764 | . 83 156 724 . 1801 Core 443 | . 12 23 123 . 285 Absorbed by Shields 542 | . . . 272 . 270 Core Remaining (%) 93 | 100 . 86 . . . Volleys Fired 153 | . 16 15 85 . 37 Largest 2 | . 2 2 2 . 2 Hottest 100 | . 40 100 100 . 59 Shots Fired 290 | . 32 29 158 . 71 Gun 280 | . 32 28 155 . 65 Cannon 3 | . . . . . 3 Launcher 7 | . . 1 3 . 3 Special . | . . . . . . Kinetic 194 | . 32 14 80 . 68 Thermal 89 | . . 14 75 . . Explosive 7 | . . 1 3 . 3 Electromagnetic . | . . . . . . Robot Hit Streak 15 | . 7 9 12 . 15 Robot Miss Streak 5 | . 4 1 5 . 2 Penetration Max . | . . . . . . Secondary Targets 1 | . . . . . 1 Max Gunslinging Chain 1 | . . . . . 1 Shots Hit Robots 213 | . 22 22 108 . 61 Core Hits 95 | . 5 13 55 . 22 Critical Hits 1 | . . . . . 1 Critical Kills . | . . . . . . Critical Parts Destroyed . | . . . . . . Melee Attacks 4 | . . . . . 4 Impact . | . . . . . . Slashing 4 | . . . . . 4 Piercing . | . . . . . . Sneak Attacks . | . . . . . . Combat Hostiles . | . . . . . . Follow-up Attacks . | . . . . . . Damage Inflicted 3840 | . 273 423 1916 . 1228 Guns 2790 | . 273 306 1484 . 727 Cannons 63 | . . . . . 63 Explosions 849 | . . 117 426 . 306 Melee 132 | . . . . . 132 Ramming 6 | . . . 6 . . Kinetic 2048 | . 273 169 816 . 790 Thermal 805 | . . 137 668 . . Explosive 849 | . . 117 426 . 306 Electromagnetic . | . . . . . . Impact . | . . . . . . Slashing 132 | . . . . . 132 Piercing . | . . . . . . Highest Corruption . | . . . . . . Average Corruption . | . . . . . . Corruption Purged . | . . . . . . Overload Shots . | . . . . . . Overflow Damage 17 | . . . 9 . 8 Projectiles . | . . . . . . Explosions 17 | . . . 9 . 8 Melee . | . . . . . . Knockbacks 1 | . . . . . 1 Impact . | . . . . . . Kinetic 1 | . . . . . 1 Secondary . | . . . . . . Self-Inflicted Damage 12 | . . . 12 . . Shots 1 | . . . 1 . . Rammed 1 | . . . 1 . . Targets Rammed 1 | . . . 1 . . Kicked . | . . . . . . Crushed . | . . . . . . Highest Temperature 267 | . . 78 267 . . Average Temperature 87 | . . 30 99 . . Received Heat Transfer 363 | . 48 57 258 . . Effects 3 | . . . 3 . . Energy Bleed 1 | . . . 1 . . Interference 2 | . . . 2 . . Siege Activations . | . . . . . . Robots Corrupted . | . . . . . . Combat Hostiles . | . . . . . . Parts Fried . | . . . . . . Impact Corruptions . | . . . . . . Robots Melted . | . . . . . . Combat Hostiles . | . . . . . . Parts Melted 8 | . . 1 7 . . Heat Transferred 2368 | . . 407 1961 . . Parts Sabotaged . | . . . . . . Parts Stolen . | . . . . . . Parts Stripped . | . . . . . . Power Chain Reactions . | . . . . . . Missiles Intercepted . | . . . . . . Alert | -11 -10 -10 -9 -9 -9 ------- Run | Scr Mat Min Mat Min Exi Peak Influence 500 | . 110 167 500 180 . Initial 180 | . . 42 7 180 . Average 214 | . 40 83 337 180 . Maximum Alert Level 2 | . . . 2 . . Low Security (%) 58 | 100 100 100 21 100 . Level 1 16 | . . . 30 . . Level 2 25 | . . . 48 . . Level 3 . | . . . . . . Level 4 . | . . . . . . Level 5 . | . . . . . . High Security . | . . . . . . Max Security . | . . . . . . Squads Dispatched 3 | . 1 . 2 . . Investigation . | . . . . . . Extermination . | . . . . . . Reinforcement 3 | . 1 . 2 . . Assault . | . . . . . . Garrison . | . . . . . . Intercept . | . . . . . . Construction Impeded . | . . . . . . Haulers Reinforced . | . . . . . . Stealth | -11 -10 -10 -9 -9 -9 --------- Run | Scr Mat Min Mat Min Exi Distress Signals 4 | . 3 . 1 . . Communications Jammed . | . . . . . . Distress Signals . | . . . . . . Times Spotted 56 | . 11 5 32 . 8 Peak Tracking Total 9 | . 5 3 5 . 9 Tactical Retreats 3 | . 1 . 2 . . Traps | -11 -10 -10 -9 -9 -9 ------- Run | Scr Mat Min Mat Min Exi Traps Triggered . | . . . . . . Indirectly . | . . . . . . Trap Hack Attempts . | . . . . . . Triggered . | . . . . . . Disarmed . | . . . . . . Reprogrammed . | . . . . . . Reused . | . . . . . . Traps Extracted . | . . . . . . Installed . | . . . . . . Triggered . | . . . . . . Machines | -11 -10 -10 -9 -9 -9 ---------- Run | Scr Mat Min Mat Min Exi Machines Disabled 6 | . 1 . 1 . 4 Max in Single Turn 2 | . 1 . 1 . 2 Machines Sabotaged . | . . . . . . Garrisons Compromised . | . . . . . . Overloaded Fab Kills . | . . . . . . Fab Network Shutdowns . | . . . . . . Hacking | -11 -10 -10 -9 -9 -9 --------- Run | Scr Mat Min Mat Min Exi Machines Accessed 5 | . . . 1 . 4 Terminals 1 | . . . 1 . . Fabricators . | . . . . . . Repair Stations . | . . . . . . Recycling Units . | . . . . . . Scanalyzers . | . . . . . . Garrison Access . | . . . . . . Total Hacks 21 | . . . 2 . 19 Successful 20 | . . . 1 . 19 Failed 1 | . . . 1 . . Catastrophic . | . . . . . . Database Lockouts . | . . . . . . Manual 3 | . . . 2 . 1 Terminals 2 | . . . 2 . . Fabricators . | . . . . . . Repair Stations . | . . . . . . Recycling Units . | . . . . . . Scanalyzers . | . . . . . . Garrison Access . | . . . . . . Terminal Hacks 20 | . . . 1 . 19 Record 18 | . . . . . 18 Branch Access Points 1 | . . . 1 . . EX-Prototype ID Bank 1 | . . . . . 1 Fabricator Hacks . | . . . . . . Repair Station Hacks . | . . . . . . Recycling Unit Hacks . | . . . . . . Scanalyzer . | . . . . . . Garrison Access Hacks . | . . . . . . Unauthorized Hacks . | . . . . . . Terminals . | . . . . . . Fabricators . | . . . . . . Repair Stations . | . . . . . . Recycling Units . | . . . . . . Scanalyzers . | . . . . . . Garrison Access . | . . . . . . Data Cores Recovered . | . . . . . . Used . | . . . . . . Hacking Detections 1 | . . . 1 . . Full Trace Events . | . . . . . . Feedback Events . | . . . . . . Feedback Blocked . | . . . . . . Robot Schematics Acquired . | . . . . . . Robots Built . | . . . . . . Matter . | . . . . . . Time . | . . . . . . Total Robot Build Rating . | . . . . . . Part Schematics Acquired . | . . . . . . Parts Built . | . . . . . . Matter . | . . . . . . Time . | . . . . . . Total Part Build Rating . | . . . . . . Parts Repaired . | . . . . . . Time . | . . . . . . Parts Recycled . | . . . . . . Recycled Matter . | . . . . . . Retrieved Matter . | . . . . . . Retrieved Components . | . . . . . . Parts Scanalyzed . | . . . . . . Part Schematics Acquired . | . . . . . . Parts Damaged . | . . . . . . Bothacking | -11 -10 -10 -9 -9 -9 ------------ Run | Scr Mat Min Mat Min Exi Used RIF Installer . | . . . . . . Robots Hacked . | . . . . . . Non-combat . | . . . . . . Combat . | . . . . . . Robot Hacks Applied . | . . . . . . Relay Couplers Released . | . . . . . . Robots Rewired . | . . . . . . Allies Hacked . | . . . . . . Hacks Repelled . | . . . . . . Allies | -11 -10 -10 -9 -9 -9 -------- Run | Scr Mat Min Mat Min Exi Total Allies . | . . . . . . Largest Group . | . . . . . . Highest-Rated Group . | . . . . . . Highest-Rated Ally . | . . . . . . Total Orders . | . . . . . . Ally Attacks . | . . . . . . Total Damage . | . . . . . . Kills . | . . . . . . Allies Corrupted . | . . . . . . Allies Melted . | . . . . . . Intel | -11 -10 -10 -9 -9 -9 ------- Run | Scr Mat Min Mat Min Exi Robot Analysis Total . | . . . . . . Derelict Logs Recovered 2 | . . 2 . . . Drone Launches . | . . . . . . Drone Recoveries . | . . . . . . Exploration | -11 -10 -10 -9 -9 -9 ------------- Run | Scr Mat Min Mat Min Exi Turns Passed 2685 | 57 148 718 1081 17 664 Spaces Moved 1558 | 39 81 527 508 14 389 Core 19 | 3 . . . . 16 Treads 319 | 3 . 40 240 . 36 Legs . | . . . . . . Wheels 1220 | 33 81 487 268 14 337 Hover . | . . . . . . Flight . | . . . . . . Fastest Speed 50 | 50 100 120 120 130 50 Average Speed 133 | 102 110 126 148 130 132 Slowest Speed 700 | 160 120 200 200 130 700 Overloaded Moves . | . . . . . . Propulsion Burnouts . | . . . . . . Robots Hopped . | . . . . . . Cave-ins Triggered . | . . . . . . Exploration Rate (%) 38 | 2 22 98 55 8 48 Regions Visited 5 Branch Regions 3 Pre-discovered Areas 1 | . . 1 . . . Known Exits Taken 1 | . . . 1 . . Unknown Exits Taken 4 | 1 1 1 . 1 . Scrap Searched 1 | . . 1 . . . Spaces Dug 5 | . . . 5 . . Terrain Destroyed 36 | . . 6 25 . 5 Melee . | . . . . . . Projectile . | . . . . . . AOE 36 | . . 6 25 . 5 Terrain Rammed . | . . . . . . Walls Destroyed . | . . . . . . Machines Disabled . | . . . . . . Actions | -11 -10 -10 -9 -9 -9 --------- Run | Scr Mat Min Mat Min Exi Total 1867 | 54 106 549 680 13 465 Wait 45 | 4 6 1 34 . . Move 1553 | 38 80 526 507 13 389 Hop . | . . . . . . Pick Up 39 | 6 3 3 20 . 7 Fast Attach 7 | 4 1 . 1 . 1 Attach 14 | 2 . . 3 . 9 Detach . | . . . . . . Swap 21 | . . 4 11 . 6 Drop 30 | . . . 18 . 12 Fire 153 | . 16 15 85 . 37 Melee 4 | . . . . . 4 Ram . | . . . . . . Kick . | . . . . . . Crush 1 | . . . 1 . . Escape Stasis . | . . . . . . Rewire . | . . . . . . Trap . | . . . . . . Miscellaneous . | . . . . . . Route ------- -11/Scrapyard -10/Materials -10/Mines (discovered 2 exits: *Mat x2) -9/Materials (discovered 5 exits: [*Mat x2] / *Min / *Sto x2) -9/Mines -9/Exiles History --------- Turn | Location | Event 2 | -11/Scrapyard | Met Revision 17 16 | -11/Scrapyard | Discovered new exit (range 16) 58 | -11/Scrapyard | Entered Materials 58 | -10/Materials | Discovered new exit (range 8) 206 | -10/Materials | Entered Mines 221 | -10/Mines | Met a Derelict bent on vengeance 247 | -10/Mines | Learned location of Zion (-7) 255 | -10/Mines | A weapon hastily lodged in a ceiling crevice suddenly fell to the ground 327 | -10/Mines | Build established: Mutant 416 | -10/Mines | Discovered new exit (range 13) 532 | -10/Mines | Discovered new exit (range 7) 924 | -10/Mines | Entered Materials 924 | -9/Materials | Evolved 2 slots: Propulsion x1, Utility x1 1089 | -9/Materials | Discovered new exit (range 15) 1209 | -9/Materials | Destroyed 8 combat bots 1275 | -9/Materials | Discovered new exit (range 16) 1459 | -9/Materials | Build established: Scavenger-Mutant 1482 | -9/Materials | Discovered new exit (range 11) 1681 | -9/Materials | Identified exit to Mines 1681 | -9/Materials | Identified exit to Storage 1924 | -9/Materials | Discovered new exit (range 11) 2005 | -9/Materials | Entered Mines 2016 | -9/Mines | Deemed a non-threat by the Exiles lab entrance 2017 | -9/Mines | Discovered new exit (range 5) 2022 | -9/Mines | Entered Exiles 2146 | -9/Exiles | Met 8R-AWN 2164 | -9/Exiles | Met EX-HEX 2200 | -9/Exiles | Met EX-BIN 2215 | -9/Exiles | Aligned with FarCom system 2216 | -9/Exiles | Given EX-Vault access code 2269 | -9/Exiles | Opened EX-Vault 2278 | -9/Exiles | Found Superbattery 2316 | -9/Exiles | Warned to stay clear of 0b10 Research branches 2518 | -9/Exiles | Attacked by the Exiles 2545 | -9/Exiles | Core integrity fell below 50% 2596 | -9/Exiles | Lost 8 parts (3n2u3w) 2612 | -9/Exiles | Core integrity fell below 20% 2686 | -9/Exiles | Destroyed by 8R-AWN with 8R-AWN's Boregun Last Messages --------------- 02661_ 8R-AWN knocked back. 02663_ Penetrated by HV Slug. 02663_ HV Slug penetrates Wall. 02664_ Dropped Hcp. Storage Unit. 02664_ Dropped Imp. Light Cannon. 02667_ Acquired 30 matter. 02667_ Penetrated by HV Slug. 02667_ Critical hit. 02667_ Assault Rifle destroyed. 02674_ The unstable cave ceiling collapses. 02674_ Penetrated by HV Slug. 02674_ HV Slug penetrates Machine. 02674_ Machine disabled. 02674_ Penetrated by HV Slug. 02674_ HV Slug penetrates Assembled Analyzer. 02678_ Penetrated by HV Slug. 02678_ HV Slug penetrates Assembled Analyzer. 02678_ Assembled Analyzer disabled. 02678_ HV Slug penetrates Assembled Analyzer. 02682_ Penetrated by HV Slug. Map ----- +----------------------------------------------------+ | """#???????????????????????????????????? | | """#???????????????????????????????????? | | """#???????????????????????????????????? | | """""??????????????????????????????????? | | """#???????????????????????????????????? | | "X" """""??????????????????????????????????? | | """ #???????????????????????????????????? | | """""""""#???????????????????????????????????? | | ###########???????????????????????????????????? | | #?????????????????????????????????????????????? | | #?????????????????????????????????????????????? | | ##????????????????????????????????????????????? | | ##???###########?????????????????????????????? | | #####"""""""""##????????????????????????????? | | " """ """"##???????????????????????????? | | " " #???????????????????????????? | | """#???????????????????????????? | | "a"#???????????#####???????????? | | " "##?????????##" #???????????? | | "###???????#" #???????????? | | " ""#??????##" ##??????????? | | """ "#????### ###????????# | | ####" ##???# ########## | | ???##" !! ##### #""""## | | ????#"""" !!! #;; | | ???## !! =* @g! ## | | ####"""" !!! #### | | #""" !! ""#?#"""""#### | | "" # ""##?#######??#### | | ! ######??????????????### | | ! * ]! ##?????????????????????? | | = " ! ##??????????????????????? | | "" #???????????????????????? | | ##""" " " ; ##???????????????????????? | | ######"" " ## ##????????????????????????? | | #????### """###;; # ##????????????????????????? | | #??????####### ## #####?????????????????????????? | | "???????????##?# #?????????????????????????????? | | !?????????????###?????????????????????????????? | | "#????????????????????????????????????????????? | | ""!"#????????????????????????????????????????????? | | #####????????????????????????????????????????????? | | ?????????????????????????????????????????????????? | | ?????????????????????????????????????????????????? | | ?????????????????????????????????????????????????? | | ?????????????????????????????????????????????????? | | ?????????????????????????????????????????????????? | | ?????????????????????????????????????????????????? | | ?????????????????????????????????????????????????? | | ?????????????????????????????????????????????????? | +----------------------------------------------------+ Best States ------------- Heat Dissipation 28 Energy Generation 14 Energy Capacity 280 Matter Stores 300 Matter Capacity 300 Sight Range 16 Terrain Scan Density 10 Armor Coverage 225 Resistance: TH 10 Weapon Shielding 66 Evasion (%) 50 Recoil Reduction 3 Item Schematics ----------------- None Robot Schematics ------------------ None Fabricated ------------ Nothing Alien Tech Used ----------------- None Achievements -------------- None Challenges ------------ None Game ------ Seed FieldAlphaUnit Manual? 0 Play Time 00:26:19 Cumulative 435.8 hours Start 2020.12.10 @ 18:29:28 End 2020.12.13 @ 00:01:54 Sessions 3 Manual Loads 0 Difficulty Rogue Special Mode None Game No. 311 Rogue 311 Adventurer 0 Explorer 0 Win Type - Total 15 Types 13/0/0/2/0/0/0/0/0 Lore% 85 Gallery% 82 Achievement% 67 Wizard Run 0 Options --------- ASCII 0 Keyboard 0 Movement Vi Keybinds 0 Fullscreen 0 Font 16/SmallcapsGlow Map View 76x50 Tactical HUD 1 Map Filters NONE Filters NONE Steam 1 RUN: 7c8eb405-729e-40e8-8b6c-6962abf76935